bitfinex-derivatives/quotes_BTCF0:USTF0_20251030
["timestamp","ask_amount","ask_price","bid_price","bid_amount"]
[1761812957091,0.71108272,110860.0,110850.0,0.43412]
[1761812957983,0.71108272,110860.0,110850.0,0.39979]
[1761812958179,0.71108272,110860.0,110850.0,0.42146]
[1761812958691,0.70206272,110860.0,110850.0,0.43529]
[1761812961693,0.71108272,110860.0,110850.0,0.39979]
[1761812962198,0.71108272,110860.0,110850.0,0.37842]
[1761812962399,0.71108272,110860.0,110850.0,0.40114]
[1761812962590,0.71108272,110860.0,110850.0,0.42366]
[1761812963110,1.07188272,110860.0,110850.0,0.04034]
[1761812963398,0.04503,110840.0,110830.0,0.39987]
[1761812963586,0.6798981,110840.0,110830.0,0.39987]
[1761812963985,0.67997553,110840.0,110830.0,0.39987]
[1761812964507,0.68097553,110840.0,110830.0,0.40287]
[1761812964903,0.68097553,110840.0,110830.0,0.06207]
[1761812965611,0.68097553,110840.0,110830.0,0.04824]
[1761812965807,0.69005346,110840.0,110830.0,0.04824]
[1761812967311,0.68097553,110840.0,110830.0,0.04824]
[1761812967512,0.68097553,110840.0,110830.0,0.06207]
[1761812969113,0.68097553,110840.0,110830.0,0.42287]
[1761812970503,0.51980148,110840.0,110830.0,0.58404405]
[1761812970702,0.68097553,110840.0,110830.0,0.42287]
[1761812970910,0.51980148,110840.0,110830.0,0.42287]
[1761812972807,0.68097553,110840.0,110830.0,0.42287]
[1761812973111,0.51980148,110840.0,110830.0,0.42287]
[1761812973601,0.68097553,110840.0,110830.0,0.42287]
[1761812974107,0.68097553,110840.0,110830.0,0.06207]
[1761812976211,0.36845553,110840.0,110830.0,0.06207]
[1761812976414,0.68097553,110840.0,110830.0,0.06207]
[1761812979622,0.68097553,110840.0,110830.0,0.04824]
[1761812980925,1.04177553,110840.0,110830.0,0.02572]
[1761812981719,0.68097553,110840.0,110830.0,0.02572]
[1761812982025,1.04177553,110840.0,110830.0,0.003]
[1761812982721,1.04177553,110840.0,110830.0,0.02572]
[1761812983617,1.04177553,110840.0,110830.0,0.003]
[1761812983824,1.04177553,110840.0,110830.0,0.02572]
[1761812984518,0.71942743,110840.0,110830.0,0.04824]
[1761812984720,1.04177553,110840.0,110830.0,0.04824]
[1761812985225,1.04177553,110840.0,110830.0,0.003]
[1761812985735,1.04177553,110840.0,110830.0,0.02572]
[1761812985921,1.04177553,110840.0,110830.0,0.003]
[1761812988119,1.08755078,110840.0,110830.0,0.003]
[1761812988525,1.08755078,110840.0,110830.0,0.02572]
[1761812989031,1.08755078,110840.0,110830.0,0.003]
[1761812989530,0.92653319,110840.0,110830.0,0.003]
[1761812989731,1.52653319,110840.0,110810.0,0.37463]
[1761812989936,1.52653319,110840.0,110810.0,0.3608]
[1761812989937,0.21362051,110820.0,110810.0,0.3608]
[1761812990120,0.23533048,110820.0,110810.0,0.38289]
[1761812990430,0.1178,110810.0,110760.0,0.05671]
[1761812990618,0.89167354,110810.0,110780.0,0.01265]
[1761812990819,0.02676026,110800.0,110790.0,0.01265]
[1761812991027,2.17475023,110800.0,110790.0,0.01265]
[1761812991223,2.29475023,110800.0,110780.0,0.01265]
[1761812991426,0.96352,110790.0,110780.0,0.01265]
[1761812991635,1.92517099,110790.0,110780.0,0.01265]
[1761812992027,2.78017099,110790.0,110780.0,0.01265]
[1761812992322,2.78289099,110790.0,110780.0,0.01265]
[1761812992524,2.88283168,110790.0,110780.0,0.01265]
[1761812993120,2.28283168,110790.0,110770.0,0.01265]
[1761812993323,0.68618102,110780.0,110770.0,0.01265]
[1761812993531,1.27789099,110780.0,110770.0,0.01265]
[1761812993923,1.25618102,110780.0,110770.0,0.01265]
[1761812994426,1.45607111,110780.0,110770.0,0.01265]
[1761812995029,2.05607111,110780.0,110770.0,0.01265]
[1761812995223,2.05615469,110780.0,110770.0,0.01265]
[1761812995726,1.35548529,110780.0,110770.0,0.01265]
[1761812995927,1.89082427,110780.0,110770.0,0.01265]
[1761812996225,2.49702069,110780.0,110770.0,0.01265]
[1761812996432,2.49974069,110780.0,110770.0,0.01265]
[1761812996629,2.59969009,110780.0,110770.0,0.01265]
[1761812997032,2.49974069,110780.0,110770.0,0.01265]
[1761812997331,2.50596547,110780.0,110770.0,0.01265]
[1761812997528,1.05068547,110780.0,110770.0,0.05671]
[1761812997738,1.36431496,110780.0,110770.0,0.05671]
[1761812998030,1.05068547,110780.0,110770.0,0.05671]
[1761812998231,1.52553598,110780.0,110770.0,0.05671]
[1761812998430,1.58106284,110780.0,110770.0,0.05671]
[1761812998630,1.58094997,110780.0,110770.0,0.05671]
[1761812999632,1.58106399,110780.0,110770.0,0.05671]
[1761812999825,1.58094997,110780.0,110770.0,0.05671]
[1761813000220,1.26742997,110780.0,110770.0,0.05671]
[1761813000420,1.32106209,110780.0,110770.0,0.05671]
[1761813000621,1.2211214,110780.0,110770.0,0.05671]
[1761813001022,0.42732611,110780.0,110770.0,0.13373004]
[1761813001330,0.74088611,110780.0,110770.0,0.13373004]
[1761813001730,0.90221662,110780.0,110770.0,0.13373004]
[1761813001938,0.42732611,110780.0,110770.0,0.13373004]
[1761813002127,0.4511707,110780.0,110770.0,0.29506055]
[1761813002329,0.4511707,110780.0,110770.0,0.13645004]
[1761813002330,0.7647307,110780.0,110770.0,0.13645004]
[1761813002528,0.7647307,110780.0,110770.0,0.13373004]
[1761813002728,0.73256713,110780.0,110770.0,0.13373004]
[1761813003132,0.73251453,110780.0,110770.0,0.13373004]
[1761813003535,0.60258973,110790.0,110770.0,0.13373004]
[1761813003536,0.01329806,110790.0,110780.0,0.04406]
[1761813003735,0.02383118,110790.0,110780.0,0.21804051]
[1761813004033,0.02383118,110790.0,110780.0,0.22076051]
[1761813004239,0.02383118,110790.0,110780.0,0.57884051]
[1761813004436,0.02383118,110790.0,110780.0,0.66910951]
[1761813004629,0.31356,110800.0,110790.0,0.05671]
[1761813004830,0.04829565,110810.0,110800.0,0.05671]
[1761813005132,0.36201565,110810.0,110800.0,0.1469628]
[1761813005525,0.36208788,110810.0,110800.0,0.5077628]
[1761813005725,0.36208788,110810.0,110800.0,0.05671]
[1761813006536,0.89121839,110810.0,110800.0,0.05771]
[1761813006936,0.85292274,110810.0,110800.0,0.05771]
[1761813007435,0.89058979,110810.0,110800.0,0.05771]
[1761813010247,1.09058979,110810.0,110800.0,0.05771]
[1761813010433,1.22053048,110810.0,110800.0,0.05771]
[1761813010634,1.39696032,110810.0,110800.0,0.01365]
[1761813011342,1.33286343,110810.0,110800.0,0.01365]
[1761813011540,1.43281283,110810.0,110800.0,0.01365]
[1761813011736,1.33286343,110810.0,110800.0,0.01365]
[1761813012638,1.49642575,110810.0,110800.0,0.01365]
[1761813013241,1.60281283,110810.0,110800.0,0.01365]
[1761813013942,1.76686334,110810.0,110800.0,0.01365]
[1761813014345,1.84691223,110810.0,110800.0,0.01365]
[1761813014846,1.6054606,110810.0,110800.0,0.01365]
[1761813015145,1.68558172,110810.0,110800.0,0.01276]
[1761813015341,1.86256941,110810.0,110800.0,0.01276]
[1761813015647,1.512943,110810.0,110800.0,0.05727]
[1761813016149,1.513943,110810.0,110800.0,0.05727]
[1761813016343,1.507943,110810.0,110800.0,0.01276]
[1761813016539,1.513943,110810.0,110800.0,0.01376]
[1761813016744,1.513903,110810.0,110800.0,0.05827]
[1761813017143,1.43378188,110810.0,110800.0,0.05827]
[1761813017343,1.513903,110810.0,110800.0,0.05827]
[1761813017846,0.56216411,110810.0,110800.0,0.05827]
[1761813018049,0.78571634,110810.0,110800.0,0.05827]
[1761813018832,0.78371634,110810.0,110800.0,0.05827]
[1761813019038,0.78671634,110810.0,110800.0,0.05827]
[1761813019439,0.78671634,110810.0,110790.0,0.01265]
[1761813019750,0.3608,110800.0,110790.0,0.05805]
[1761813019942,0.38411067,110800.0,110790.0,0.05805]
[1761813020139,0.40075298,110800.0,110790.0,0.1510308]
[1761813020553,0.33679067,110800.0,110790.0,0.05805]
[1761813021550,0.33679067,110800.0,110790.0,0.05905]
[1761813022044,0.33679067,110800.0,110790.0,0.148311]
[1761813022238,0.40682356,110800.0,110790.0,0.749311]
[1761813022848,0.40682356,110800.0,110790.0,0.65905]
[1761813024846,0.40182356,110800.0,110790.0,0.753031]
[1761813025352,0.40282356,110800.0,110790.0,0.752031]
[1761813025650,0.40282356,110800.0,110790.0,0.749311]
[1761813025855,0.33879067,110800.0,110790.0,0.749311]
[1761813026152,0.33879067,110800.0,110790.0,1.110111]
[1761813026359,0.31554768,110800.0,110790.0,1.110111]
[1761813026549,0.33714258,110800.0,110790.0,1.110111]
[1761813026743,0.33714258,110800.0,110790.0,0.749311]
[1761813027043,0.40117547,110800.0,110790.0,1.110111]
[1761813029044,0.40117547,110800.0,110790.0,0.749311]
[1761813029249,0.40117547,110800.0,110790.0,1.110111]
[1761813033752,0.33714258,110800.0,110790.0,1.110111]
[1761813033949,0.06403289,110810.0,110800.0,0.0902528]
[1761813034143,0.37715289,110810.0,110800.0,0.850751]
[1761813034344,0.37715289,110810.0,110800.0,0.5124328]
[1761813034546,0.37715289,110810.0,110800.0,0.5097128]
[1761813035042,0.37715289,110810.0,110800.0,0.5107128]
[1761813035043,0.38111289,110810.0,110800.0,0.5107128]
[1761813035240,0.38211289,110810.0,110800.0,0.5107128]
[1761813035542,0.38211289,110810.0,110800.0,0.67204685]
[1761813036850,0.38211289,110810.0,110800.0,0.5107128]
[1761813037056,0.38211289,110810.0,110800.0,0.1499128]
[1761813037755,0.38211289,110810.0,110800.0,0.5107128]
[1761813039854,0.47941405,110810.0,110800.0,0.5107128]
[1761813040254,0.31808,110810.0,110800.0,0.5107128]
[1761813041257,0.35014024,110810.0,110800.0,0.5107128]
[1761813043251,0.47941405,110810.0,110800.0,0.5107128]
[1761813043648,0.47941405,110810.0,110800.0,0.42046]
[1761813044463,0.88227429,110810.0,110800.0,0.05966]
[1761813045161,0.89138624,110810.0,110800.0,0.05966]
[1761813045861,0.73005219,110810.0,110800.0,0.05966]
[1761813046062,0.91189546,110810.0,110800.0,0.05966]
[1761813048161,0.90189546,110810.0,110800.0,0.05966]
[1761813048461,1.36189546,110810.0,110800.0,0.05966]
[1761813049754,1.96189546,110810.0,110800.0,0.05966]
[1761813049963,1.94138624,110810.0,110800.0,0.05966]
[1761813050161,1.96190256,110810.0,110800.0,0.05966]
[1761813050564,1.61190256,110810.0,110800.0,0.05966]
[1761813051260,1.57984232,110810.0,110800.0,0.05966]
[1761813051470,1.74135721,110810.0,110800.0,0.05966]
[1761813053068,1.96135721,110810.0,110800.0,0.05966]
[1761813056562,1.96135721,110810.0,110800.0,0.01426]
[1761813056869,1.96135721,110810.0,110800.0,0.05809]
[1761813059164,1.22685274,110810.0,110800.0,0.05809]
[1761813059468,1.53957274,110810.0,110800.0,0.05809]
[1761813060060,0.93957274,110810.0,110800.0,0.05809]
[1761813060262,0.93046079,110810.0,110800.0,0.05809]
[1761813060464,0.55656452,110810.0,110800.0,0.05809]
[1761813060668,0.86928452,110810.0,110800.0,0.05809]
[1761813061371,1.30928452,110810.0,110800.0,0.05809]
[1761813062574,1.11928452,110810.0,110800.0,0.05809]
[1761813063577,1.14331457,110810.0,110800.0,0.05809]
[1761813063770,1.11928452,110810.0,110800.0,0.05809]
[1761813064275,1.13931457,110810.0,110800.0,0.05809]
[1761813064773,1.11528452,110810.0,110800.0,0.05809]
[1761813064974,0.54374079,110810.0,110800.0,0.05809]
[1761813065279,0.85646079,110810.0,110800.0,0.05809]
[1761813066072,0.70503632,110810.0,110800.0,0.05809]
[1761813066276,1.05191531,110810.0,110800.0,0.05809]
[1761813067282,1.62191531,110810.0,110800.0,0.03566]
[1761813067581,1.62191531,110810.0,110800.0,0.01426]
[1761813068375,1.72988619,110810.0,110800.0,0.01426]
[1761813068772,1.51988619,110810.0,110800.0,0.03566]
[1761813068974,1.54393311,110810.0,110800.0,0.05809]
[1761813069273,1.51988619,110810.0,110800.0,0.05809]
[1761813070081,1.4199455,110810.0,110800.0,0.05809]
[1761813071582,1.51988619,110810.0,110800.0,0.05809]
[1761813072486,1.69988619,110810.0,110800.0,0.05809]
[1761813072785,1.54988619,110810.0,110800.0,0.05809]
[1761813073385,2.14988619,110810.0,110800.0,0.05809]
[1761813074893,1.82703725,110810.0,110800.0,0.05809]
[1761813075088,2.14988619,110810.0,110800.0,0.05809]
[1761813075478,1.89988619,110810.0,110800.0,0.05809]
[1761813075679,1.03852103,110810.0,110800.0,0.05809]
[1761813075987,1.1999455,110810.0,110800.0,0.05809]
[1761813076889,0.8872255,110810.0,110800.0,0.05809]
[1761813077189,1.1999455,110810.0,110800.0,0.05809]
[1761813079283,0.87709656,110810.0,110800.0,0.05809]
[1761813079593,1.1999455,110810.0,110800.0,0.05809]
[1761813080399,0.87709656,110810.0,110800.0,0.05809]
[1761813080592,0.91128981,110810.0,110800.0,0.05809]
[1761813080892,1.06258534,110810.0,110800.0,0.05809]
[1761813081293,1.03852103,110810.0,110800.0,0.05809]
[1761813081795,0.8872255,110810.0,110800.0,0.05809]
[1761813082093,1.1999455,110810.0,110800.0,0.05809]
[1761813082388,0.8872255,110810.0,110800.0,0.05809]
[1761813083084,1.1999455,110810.0,110800.0,0.05809]
[1761813084492,1.03852103,110810.0,110800.0,0.05809]
[1761813084992,1.1999455,110810.0,110800.0,0.05809]
[1761813085995,1.03852103,110810.0,110800.0,0.05809]
[1761813086196,1.1999455,110810.0,110800.0,0.05809]
[1761813086688,0.8872255,110810.0,110800.0,0.05809]
[1761813086893,1.1999455,110810.0,110800.0,0.05809]
[1761813087488,1.03852103,110810.0,110800.0,0.05809]
[1761813087793,1.39932103,110810.0,110800.0,0.05809]
[1761813087999,1.5607455,110810.0,110800.0,0.05809]
[1761813089994,1.7307455,110810.0,110800.0,0.05809]
[1761813090789,2.10068619,110810.0,110800.0,0.01426]
[1761813091293,2.11671631,110810.0,110800.0,0.01426]
[1761813091895,2.11671631,110810.0,110800.0,0.03731]
[1761813094606,2.11671631,110810.0,110800.0,0.06062]
[1761813095803,2.11671631,110810.0,110800.0,0.03731]
[1761813097505,2.11671631,110810.0,110800.0,0.01426]
[1761813097697,2.11671631,110810.0,110800.0,0.06062]
[1761813099602,2.06862595,110810.0,110800.0,0.06062]
[1761813101007,1.74577701,110810.0,110800.0,0.06062]
[1761813101200,1.45577701,110810.0,110800.0,0.06062]
[1761813101407,1.8267436,110810.0,110800.0,0.06062]
[1761813101601,1.85881709,110810.0,110800.0,0.06062]
[1761813101906,1.64923497,110810.0,110800.0,0.06062]
[1761813102100,1.54929428,110810.0,110800.0,0.06062]
[1761813102808,1.54929428,110810.0,110800.0,0.22204447]
[1761813102809,1.23661428,110810.0,110800.0,0.22204447]
[1761813103105,1.24127744,110810.0,110800.0,0.06062]
[1761813103700,1.24127744,110810.0,110800.0,0.22204447]
[1761813103894,1.07985297,110810.0,110800.0,0.06062]
[1761813104195,1.24127744,110810.0,110800.0,0.06062]
[1761813105201,1.07985297,110810.0,110800.0,0.06062]
[1761813105599,1.24127744,110810.0,110800.0,0.06062]
[1761813107012,1.07985297,110810.0,110800.0,0.22204447]
[1761813107313,1.24127744,110810.0,110800.0,0.22204447]
[1761813108101,1.24127744,110810.0,110800.0,0.82204447]
[1761813108297,0.03207349,110840.0,110830.0,0.1504506]
[1761813108498,0.52516607,110840.0,110830.0,0.47026954]
[1761813108697,0.17468447,110860.0,110850.0,0.05731]
[1761813108901,0.53548447,110860.0,110850.0,0.05731]
[1761813110110,0.53648447,110860.0,110850.0,0.05831]
[1761813112716,0.53648447,110860.0,110850.0,0.1485244]
[1761813113316,0.37506,110860.0,110850.0,0.1485244]
[1761813115416,0.01426,110860.0,110850.0,0.1485244]
[1761813116008,0.01426,110860.0,110850.0,0.5093244]
[1761813116714,0.01426,110860.0,110850.0,0.05831]
[1761813117417,0.01426,110860.0,110850.0,0.1485244]
[1761813117604,0.01426,110860.0,110850.0,0.5093244]
[1761813118414,0.01426,110860.0,110850.0,0.1485244]
[1761813118614,0.01426,110860.0,110850.0,0.5093244]
[1761813119112,0.01426,110860.0,110850.0,0.1485244]
[1761813120414,0.53629703,110860.0,110850.0,0.05831]
[1761813121013,0.53629703,110860.0,110850.0,0.03639]
[1761813121217,0.53629703,110860.0,110850.0,0.02241]
[1761813121218,0.56629703,110860.0,110850.0,0.02241]
[1761813121518,0.57292703,110860.0,110850.0,0.001]
[1761813122019,1.07292703,110860.0,110850.0,0.001]
[1761813122320,1.07292703,110860.0,110850.0,0.02241]
[1761813122614,1.07292703,110860.0,110850.0,0.04433]
[1761813123808,1.07292703,110860.0,110850.0,0.02241]
[1761813124005,1.07292703,110860.0,110850.0,0.04433]
[1761813124818,1.17286772,110860.0,110850.0,0.04433]
[1761813127223,1.07292703,110860.0,110850.0,0.04433]
[1761813127620,1.06629703,110860.0,110850.0,0.04433]
[1761813127819,1.37877703,110860.0,110850.0,0.05831]
[1761813134523,0.90506,110860.0,110850.0,0.05831]
[1761813134737,1.37877703,110860.0,110850.0,0.05831]
[1761813135419,1.18754,110860.0,110850.0,0.05831]
[1761813135612,1.18754,110860.0,110850.0,0.30976283]
[1761813135613,0.87506,110860.0,110850.0,0.30976283]
[1761813135819,1.18754,110860.0,110850.0,0.1485258]
[1761813137432,1.18754,110860.0,110850.0,0.05831]
[1761813138518,1.21963232,110860.0,110850.0,0.05831]
[1761813139828,0.85883232,110860.0,110850.0,0.05831]
[1761813140831,1.21963232,110860.0,110850.0,0.05831]
[1761813141335,1.23565765,110860.0,110850.0,0.05831]
[1761813144021,0.87485765,110860.0,110850.0,0.05831]
[1761813144635,1.23565765,110860.0,110850.0,0.05831]
[1761813145136,0.87485765,110860.0,110850.0,0.05831]
[1761813145930,1.39689468,110860.0,110850.0,0.05831]
[1761813147950,1.03609468,110860.0,110850.0,0.05831]
[1761813148125,1.39689468,110860.0,110850.0,0.05831]
[1761813150346,0.87485765,110860.0,110850.0,0.05831]
[1761813151145,0.87485765,110860.0,110850.0,1.55831]
[1761813151334,0.85883544,110860.0,110850.0,1.55831]
[1761813151836,1.21963544,110860.0,110850.0,1.55831]
[1761813153434,0.85883544,110860.0,110850.0,1.55831]
[1761813153633,1.21963544,110860.0,110850.0,1.55831]
[1761813154135,0.85883544,110860.0,110850.0,1.55831]
[1761813155342,1.21963544,110860.0,110850.0,1.55831]
[1761813155844,0.85883544,110860.0,110850.0,1.55831]
[1761813156031,0.82674,110860.0,110850.0,1.55831]
[1761813161653,0.85883544,110860.0,110850.0,1.55831]
[1761813162448,1.21963544,110860.0,110850.0,1.55831]
[1761813163369,0.85883544,110860.0,110850.0,1.55831]
[1761813164458,0.53972544,110860.0,110850.0,1.80976333]
[1761813164677,0.84545544,110860.0,110850.0,2.17328333]
[1761813164964,0.53309544,110860.0,110850.0,2.33452036]
[1761813165172,0.53309544,110860.0,110850.0,2.17328333]
[1761813165358,0.53309544,110860.0,110850.0,2.77328333]
[1761813165956,0.53309544,110860.0,110850.0,2.77056333]
[1761813167064,0.53972544,110860.0,110850.0,2.77056333]
[1761813167265,0.53309544,110860.0,110850.0,2.77056333]
[1761813168272,0.52507976,110860.0,110850.0,2.77056333]
[1761813168770,0.5571752,110860.0,110850.0,2.77056333]
[1761813169268,0.52507976,110860.0,110850.0,2.77056333]
[1761813169965,0.52507976,110860.0,110850.0,2.6093263]
[1761813170265,0.52507976,110860.0,110850.0,2.77056333]
[1761813172675,0.52507976,110860.0,110850.0,2.6093263]
[1761813172875,0.52507976,110860.0,110850.0,2.77056333]
[1761813173372,0.52507976,110860.0,110850.0,2.77051816]
[1761813173572,0.52507976,110860.0,110850.0,2.93171002]
[1761813173871,0.52507976,110860.0,110850.0,2.77051816]
[1761813179078,0.52507976,110860.0,110850.0,2.93171002]
[1761813179475,0.52507976,110860.0,110850.0,2.33171002]
[1761813179870,0.52507976,110860.0,110850.0,2.33443002]
[1761813180083,0.52507976,110860.0,110850.0,2.33171002]
[1761813180282,0.52507746,110860.0,110850.0,2.33443002]
[1761813181381,0.5571729,110860.0,110850.0,2.33443002]
[1761813182096,0.5571729,110860.0,110850.0,2.33171002]
[1761813183382,0.52507746,110860.0,110850.0,2.33171002]
[1761813184181,0.5571729,110860.0,110850.0,2.33171002]
[1761813185283,0.52507746,110860.0,110850.0,2.33171002]
[1761813186183,0.52507746,110860.0,110850.0,2.33443002]
[1761813186981,0.52507746,110860.0,110850.0,2.64443002]
[1761813188677,0.501,110860.0,110850.0,2.64443002]
[1761813188877,0.501,110860.0,110850.0,2.71731394]
[1761813191079,0.5,110860.0,110850.0,2.8785058]
[1761813191282,0.0561729,110870.0,110860.0,0.1461082]
[1761813191577,0.52874044,110880.0,110870.0,0.1461]
[1761813191782,0.52874044,110880.0,110870.0,0.82928372]
[1761813192885,0.53274044,110880.0,110870.0,0.83028372]
[1761813193669,0.53274044,110880.0,110870.0,0.83931402]
[1761813193870,0.7071923,110880.0,110870.0,0.5169303]
[1761813194177,0.54600044,110880.0,110870.0,0.67812216]
[1761813194377,0.54800044,110880.0,110870.0,0.67812216]
[1761813201585,0.84690044,110880.0,110870.0,0.67812216]
[1761813201774,0.85353044,110880.0,110870.0,0.67812216]
[1761813202581,0.84690044,110880.0,110870.0,0.67812216]
[1761813202782,0.53474044,110880.0,110870.0,0.68084216]
[1761813202978,0.84690044,110880.0,110870.0,0.68084216]
[1761813203684,0.84690044,110880.0,110870.0,0.67812216]
[1761813204181,0.85353044,110880.0,110870.0,0.67812216]
[1761813204789,0.54137044,110880.0,110870.0,0.67812216]
[1761813205682,0.53474044,110880.0,110870.0,0.67812216]
[1761813207586,0.54137044,110880.0,110870.0,0.67812216]
[1761813208385,0.54800044,110880.0,110870.0,0.67812216]
[1761813211887,0.54800044,110880.0,110870.0,2.17812216]
[1761813213799,0.53474044,110880.0,110870.0,2.17812216]
[1761813214094,0.54137044,110880.0,110870.0,2.17812216]
[1761813214294,0.54800044,110880.0,110870.0,2.17812216]
[1761813214495,0.54137044,110880.0,110870.0,2.17812216]
[1761813215400,0.53474044,110880.0,110870.0,2.29812216]
[1761813215589,0.53474044,110880.0,110870.0,2.33931402]
[1761813215990,0.53474044,110880.0,110870.0,2.34203402]
[1761813216882,0.53474044,110880.0,110870.0,2.0196503]
[1761813217086,0.53474044,110880.0,110870.0,2.33931402]
[1761813217494,0.53474044,110880.0,110870.0,2.70283402]
[1761813219598,0.54137044,110880.0,110870.0,2.70011402]
[1761813219892,0.51729298,110880.0,110870.0,2.74880299]
[1761813220897,0.51066298,110880.0,110870.0,2.74880299]
[1761813221490,0.52392298,110880.0,110870.0,2.58761113]
[1761813221691,0.52392298,110880.0,110870.0,2.53892216]
[1761813222394,0.52392298,110880.0,110870.0,2.57135441]
[1761813226505,0.52392298,110880.0,110870.0,2.73254627]
[1761813227005,0.52392298,110880.0,110870.0,2.57135441]
[1761813227804,0.51729298,110880.0,110870.0,2.57135441]
[1761813228105,0.51729298,110880.0,110870.0,2.73254627]
[1761813228707,0.51066298,110880.0,110870.0,2.85254627]
[1761813229004,0.51066298,110880.0,110870.0,2.73254627]
[1761813230396,0.51066298,110880.0,110870.0,2.85254627]
[1761813230601,0.51066298,110880.0,110870.0,2.73254627]
[1761813231391,0.51066298,110880.0,110870.0,2.70011402]
[1761813234404,0.51066298,110880.0,110870.0,2.3777303]
[1761813234606,0.51729298,110880.0,110870.0,2.3777303]
[1761813234801,0.51066298,110880.0,110870.0,2.70011402]
[1761813235398,0.51066298,110880.0,110870.0,2.53885124]
[1761813235896,0.51066298,110880.0,110870.0,2.57128349]
[1761813241504,0.51066298,110880.0,110870.0,2.53885124]
[1761813241712,0.52392298,110880.0,110870.0,2.53885124]
[1761813242006,0.51066298,110880.0,110870.0,2.53885124]
[1761813243108,0.52392298,110880.0,110870.0,2.53885124]
[1761813243313,0.52392298,110880.0,110870.0,2.61995128]
[1761813245015,0.51066298,110880.0,110870.0,2.58754021]
[1761813247216,0.52392298,110880.0,110870.0,2.58754021]
[1761813249621,0.51729298,110880.0,110870.0,2.58754021]
[1761813250211,0.51066298,110880.0,110870.0,2.58754021]
[1761813251319,0.51066298,110880.0,110870.0,2.82754021]
[1761813251524,0.51066298,110880.0,110870.0,2.77885124]
[1761813253819,0.51066298,110880.0,110870.0,2.82756136]
[1761813255227,0.51066298,110880.0,110870.0,2.77885124]
[1761813256635,0.51066298,110880.0,110870.0,2.53885124]
[1761813257528,0.52392298,110880.0,110870.0,2.53885124]
[1761813257836,0.52392298,110880.0,110870.0,2.58755464]
[1761813258635,0.51066298,110880.0,110870.0,2.82755464]
[1761813258837,0.51066298,110880.0,110870.0,2.77885124]
[1761813261639,0.51066298,110880.0,110870.0,2.53885124]
[1761813262844,0.52392298,110880.0,110870.0,2.53885124]
[1761813263541,0.51729298,110880.0,110870.0,2.53885124]
[1761813263949,0.51066298,110880.0,110870.0,2.53885124]
[1761813264443,0.51066298,110880.0,110870.0,2.66885124]
[1761813264645,0.51066298,110880.0,110870.0,2.53885124]
[1761813267140,0.51066298,110880.0,110870.0,2.65885124]
[1761813267346,0.51066298,110880.0,110870.0,2.53885124]
[1761813268546,0.51066298,110880.0,110870.0,2.64885124]
[1761813270344,0.51066298,110880.0,110870.0,2.53885124]
[1761813271753,0.51066298,110880.0,110870.0,1.03885124]
[1761813272258,0.51066298,110880.0,110870.0,2.53885124]
[1761813274953,0.52392298,110880.0,110870.0,2.53885124]
[1761813275351,0.83572298,110880.0,110870.0,0.11462818]
[1761813275551,0.83572298,110880.0,110870.0,0.10559788]
[1761813275751,0.83572298,110880.0,110870.0,0.1380653]
[1761813276755,0.99684392,110880.0,110870.0,0.1380653]
[1761813276959,0.99684392,110880.0,110870.0,0.03346742]
[1761813276960,1.36699392,110880.0,110870.0,0.03346742]
[1761813277159,1.87699392,110880.0,110870.0,0.03346742]
[1761813277360,1.73657449,110880.0,110870.0,0.001]
[1761813279662,1.53657449,110880.0,110870.0,0.001]
[1761813281865,2.13657449,110880.0,110870.0,0.001]
[1761813282953,2.29769543,110880.0,110870.0,0.001]
[1761813283151,2.13385449,110880.0,110870.0,0.001]
[1761813286867,2.13385449,110880.0,110870.0,0.02402]
[1761813290761,2.13385449,110880.0,110870.0,0.001]
[1761813291061,2.29769543,110880.0,110870.0,0.001]
[1761813291363,2.29497543,110880.0,110870.0,0.001]
[1761813291967,2.29769543,110880.0,110870.0,0.001]
[1761813292165,2.29497543,110880.0,110870.0,0.001]
[1761813292868,2.29769543,110880.0,110870.0,0.001]
[1761813293068,2.29497543,110880.0,110870.0,0.001]
[1761813293468,2.29769543,110880.0,110870.0,0.001]
[1761813293661,2.29497543,110880.0,110870.0,0.001]
[1761813293867,2.29769543,110880.0,110870.0,0.001]
[1761813294169,2.29497543,110880.0,110870.0,0.001]
[1761813294869,2.29497543,110880.0,110870.0,0.02236]
[1761813295368,2.29503945,110880.0,110870.0,0.18354496]
[1761813295962,2.29503945,110880.0,110870.0,0.20681496]
[1761813298763,2.00503945,110880.0,110870.0,0.20681496]
[1761813299773,1.99840945,110880.0,110870.0,0.22072496]
[1761813299970,1.97840945,110880.0,110870.0,0.22072496]
[1761813303671,1.30580945,110880.0,110870.0,0.22072496]
[1761813303867,1.45638449,110880.0,110870.0,0.22072496]
[1761813304068,0.54462449,110880.0,110870.0,0.22072496]
[1761813304270,0.85638449,110880.0,110870.0,0.26942284]
[1761813304764,0.54462449,110880.0,110870.0,0.35962274]
[1761813304969,0.54462449,110880.0,110870.0,0.8816077]
[1761813305270,0.85634449,110880.0,110870.0,0.63022284]
[1761813305470,0.85634449,110880.0,110870.0,0.35962274]
[1761813307081,0.85634449,110880.0,110870.0,0.72042274]
[1761813310874,0.54462449,110880.0,110870.0,0.72042274]
[1761813311083,0.85634449,110880.0,110870.0,0.72042274]
[1761813311376,0.85634449,110880.0,110870.0,0.8816077]
[1761813311585,0.83564298,110880.0,110870.0,0.8816077]
[1761813312181,0.51066298,110880.0,110870.0,0.8816077]
[1761813312578,0.51066298,110880.0,110870.0,1.4816077]
[1761813313682,0.51066298,110880.0,110870.0,1.7443277]
[1761813313877,0.51066298,110880.0,110870.0,1.7416077]
[1761813314273,0.51066298,110880.0,110870.0,1.7443277]
[1761813314473,0.51066298,110880.0,110870.0,1.7416077]
[1761813314683,0.51066298,110880.0,110870.0,2.0532877]
[1761813315072,0.51066298,110880.0,110870.0,1.7932877]
[1761813316278,0.51066298,110880.0,110870.0,1.9032877]
[1761813318682,0.51066298,110880.0,110870.0,1.58091778]
[1761813319085,0.51066298,110880.0,110870.0,1.9032877]
[1761813319688,0.51066298,110880.0,110870.0,1.7932877]
[1761813320477,0.51066298,110880.0,110870.0,1.1932877]
[1761813323992,0.52392298,110880.0,110870.0,1.1932877]
[1761813324178,0.52392298,110880.0,110870.0,1.14458982]
[1761813325196,0.52392298,110880.0,110870.0,1.19324376]
[1761813326089,0.51729298,110880.0,110870.0,1.19324376]
[1761813327683,0.51066298,110880.0,110870.0,1.19324376]
[1761813331088,0.52392298,110880.0,110870.0,1.19324376]
[1761813331482,0.51729298,110880.0,110870.0,1.19324376]
[1761813331684,0.51066298,110880.0,110870.0,1.19324376]
[1761813333092,0.51066298,110880.0,110870.0,1.31324376]